{"text_format":"1","workbook":"xlsx","n_sheets":8,"sheets":["Notas Questionários","Matriz Enquadramento","Classificação Investimentos","Declarações","Mod Quest Investimentos","Notas","Tabela Notas","Categoria de Produtos"],"not_rendered":{"charts":0,"images":1,"macros":0,"external_links":0,"defined_names":5,"comments":0,"pivot_tables":0},"unopened":[],"bounds":{"document_bytes":16777216,"sheet_cells":100000,"rows_first":2000,"rows_last":500,"rows_between":2000,"halvings":0,"cell_chars":16384,"cell_head_chars":4096},"cells_cut":0,"cells_raw":0,"read":"whole","date_system":"1900"}

{"sheet":"Notas Questionários","index":0,"n_rows":27,"n_cols":11,"rows_kept":27,"cut":false,"hidden":true,"merged":[[2,1,3,1],[2,2,2,10],[16,1,17,1],[16,2,16,10]]}
[]
[null,"Investimentos - Anexo II"]
[null,"Questão","Alternativa"]
[null,null,"a","b","c","d","e","f","g","h","i"]
[null,1,1,2,3,0,"-","-","-","-","-"]
[null,2,1,2,3,"-","-","-","-","-","-"]
[null,3,1,2,3,"-","-","-","-","-","-"]
[null,4,0,0,1,2,3,2,2,2,0]
[null,5,1,2,3,"-","-","-","-","-","-"]
[null,6,1,2,3,"-","-","-","-","-","-"]
[null,7,1,2,3,"-","-","-","-","-","-"]
[null,8,1,2,3,4,1,2,3,4,"-"]
[null,9,1,2,3,4,"-","-","-","-","-"]
[]
[]
[null,"Derivativos - Anexo I"]
[null,"Questão","Alternativa"]
[null,null,"a","b","c","d","e","f","g","h","i"]
[null,1,1,2,3,0,"-","-","-","-","-"]
[null,2,1,2,3,"-","-","-","-","-","-"]
[null,3,1,2,3,"-","-","-","-","-","-"]
[null,4,1,2,3,"-","-","-","-","-","-"]
[null,5,1,2,3,"-","-","-","-","-","-"]
[null,6,1,2,3,"-","-","-","-","-","-"]
[null,7,1,2,3,"-","-","-","-","-","-"]
[null,8,1,2,3,4,1,2,3,4,"-"]
[null,9,1,2,3,4,"-","-","-","-","-"]

{"sheet":"Matriz Enquadramento","index":1,"n_rows":13,"n_cols":5,"rows_kept":13,"cut":false,"hidden":true,"merged":[[2,1,3,1],[2,2,2,4]]}
[]
[]
[null,"Perfil do cliente","Perfil do Produto"]
[null,null,"Conservador","Moderado","Agressivo"]
[null,"Investidor Profissional","Enquadrado","Enquadrado","Enquadrado"]
[null,"Investidor Qualificado","Enquadrado","Enquadrado","Enquadrado"]
[null,"PJ Direito Público","Enquadrado","Enquadrado","Enquadrado"]
[null,"Cliente c/ Carteira Administrada","Enquadrado","Enquadrado","Enquadrado"]
[null,"Cliente c/ Perfil definido por Consultor","Enquadrado","Enquadrado","Enquadrado"]
[null,"Agressivo","Enquadrado","Enquadrado","Enquadrado"]
[null,"Moderado","Enquadrado","Enquadrado","Desenquadrado"]
[null,"Conservador","Enquadrado","Desenquadrado","Desenquadrado"]
[null,"Sem Perfil","Desenquadrado","Desenquadrado","Desenquadrado"]

{"sheet":"Classificação Investimentos","index":2,"n_rows":18,"n_cols":19,"rows_kept":18,"cut":false,"hidden":true,"merged":[[3,17,3,18],[3,16,4,16],[8,1,9,1],[10,1,11,1],[13,1,14,1],[5,15,7,15],[8,15,9,15],[10,15,11,15],[13,15,14,15],[15,1,17,1],[3,12,3,13],[3,15,4,15],[3,1,4,1],[3,10,3,11],[3,2,4,2],[5,1,7,1],[15,15,17,15]]}
[]
[]
[]
[null,"Produto","Taxa","Fator 1","Fator 2","Fator 3","Fator 4","Fator 5","Fator 6","Fator 7","Avaliação",null,"Perfil do produto",null,null,"Produtos","Taxa","Perfil do produto"]
[null,null,null,"Crédito","Liquidez","Principal","Mercado","Contrato","Payout","Fiscal","Prazo ≤ 3 anos","Prazo > 3 anos","Prazo ≤ 3 anos","Prazo > 3 anos",null,null,null,"Prazo ≤ 3 anos","Prazo > 3 anos"]
[null,"CDB","Pós",1,1,0,0,0,0,1,1,1.5,"Conservador","Moderado",null,"CDB","Pós","Conservador","Moderado"]
[null,null,"Pré",1,1,0,1,0,0,1,1,1.5,"Conservador","Moderado",null,null,"Pré","Conservador","Moderado"]
[null,null,"IPCA",1,1,0,1,0,0,1,1,1.5,"Conservador","Moderado",null,null,"IPCA","Conservador","Moderado"]
[null,"LCA","Pós",1,1,0,0,0,0,1,1,1.5,"Conservador","Moderado",null,"LCA","Pós","Conservador","Moderado"]
[null,null,"Pré",1,1,0,1,0,0,1,1,1.5,"Conservador","Moderado",null,null,"Pré","Conservador","Moderado"]
[null,"LCI","Pós",1,1,0,0,0,0,1,1,1.5,"Conservador","Moderado",null,"LCI","Pós","Conservador","Moderado"]
[null,null,"Pré",1,1,0,1,0,0,1,1,1.5,"Conservador","Moderado",null,null,"Pré","Conservador","Moderado"]
[null,"LF","Pós",1,2,0,0,0,0,1,2,2.5,"Moderado","Moderado",null,"LF","Pós","Moderado","Moderado"]
[null,"DPGE","Pós",0,2,0,0,0,0,1,2,2.5,"Moderado","Moderado",null,"DPGE","Pós","Moderado","Moderado"]
[null,null,"Pré",0,2,0,1,0,0,1,2,2.5,"Moderado","Moderado",null,null,"Pré","Moderado","Moderado"]
[null,"CDBV","Pós",3,3,3,0,0,0,1,3,3.5,"Moderado","Agressivo",null,"CDBV","Pós","Moderado","Agressivo"]
[null,null,"Pré",3,3,3,1,0,0,1,3,3.5,"Moderado","Agressivo",null,null,"Pré","Moderado","Agressivo"]
[null,null,"IPCA",3,3,3,1,0,0,1,3,3.5,"Moderado","Agressivo",null,null,"IPCA","Moderado","Agressivo"]

{"sheet":"Declarações","index":3,"n_rows":38,"n_cols":2,"rows_kept":38,"cut":false,"hidden":true,"merged":[]}
[]
[]
[null,"Anexo IV"]
[null,"Declaração da Condição de Investidor Profissional"]
[]
[null,"Ao assinar este termo, afirmo minha condição de investidor profissional e declaro possuir conhecimento sobre o mercado financeiro suficiente para que não me sejam aplicáveis um conjunto de proteções legais e regulamentares conferidas aos demais investidores."]
[]
[null,"Como investidor profissional, atesto ser capaz de entender e ponderar os riscos financeiros relacionados à aplicação de meus recursos em valores mobiliários que só podem ser adquiridos por investidores profissionais. "]
[]
[null,"Declaro, sob as penas da lei, que possuo investimentos financeiros em valor superior a R$ 10.000.000,00 (dez milhões de reais). "]
[]
[null,"Data e local,"]
[]
[null,"_____________________          "]
[null,"[Inserir nome]"]
[]
[null,"_____________________"]
[null,"[Assinatura]"]
[]
[]
[]
[]
[null,"Anexo V"]
[null,"Declaração da Condição de Investidor Qualificado"]
[]
[null,"Ao assinar este termo, afirmo minha condição de investidor qualificado e declaro possuir conhecimento sobre o mercado financeiro suficiente para que não me sejam aplicáveis um conjunto de proteções legais e regulamentares conferidas aos investidores que não sejam qualificados."]
[]
[null,"Como investidor qualificado, atesto ser capaz de entender e ponderar os riscos financeiros relacionados à aplicação de meus recursos em valores mobiliários que só podem ser adquiridos por investidores qualificados. "]
[]
[null,"Declaro, sob as penas da lei, que possuo investimentos financeiros em valor superior a R$ 1.000.000,00 (um milhão de reais). "]
[]
[null,"Data e local,"]
[]
[null,"_____________________          "]
[null,"[Inserir nome]"]
[]
[null,"_____________________"]
[null,"[Assinatura]"]

{"sheet":"Mod Quest Investimentos","index":4,"n_rows":138,"n_cols":133,"rows_kept":138,"cut":false,"hidden":false,"merged":[[5,14,5,17],[6,14,6,18],[112,4,113,29],[136,4,137,4],[136,5,137,9],[136,11,137,12],[136,13,137,19],[136,20,137,22],[118,2,124,29],[93,2,93,7],[79,2,80,30],[6,27,6,29],[13,4,19,29],[23,4,29,29],[6,2,6,12],[6,20,6,25]]}
[]
[]
[]
[null,null,null,null,null,null,null,null,null,null,null,null,null,null,null,null,null,null,null,null,null,null,null,null,null,null,null,null,null,null,null,null,null,null,null,null,"Validações"]
[null,null,null,null,null,null,null,null,null,null,null,null,null,null,null,null,null,null,null,null,null,null,null,null,null,null,null,null,null,null,null,null,null,null,null,null,null,null,null,null,null,null,null,null,null,"Validação CPF",null,null,null,null,null,null,null,null,null,null,null,null,null,null,null,null,null,null,null,null,null,null,null,null,null,null,null,null,null,null,null,null,null,null,null,null,null,null,null,"Validação CNPJ"]
[null,null,"Nome/Razão Social:",null,null,null,null,null,null,null,null,null,null,null,"CPF / CNPJ:",null,null,null,null,null,"E-mail:",null,null,null,null,null,null,"Telefone:",null,null,null,null,null,null,null,null,"Nome/Razão Social:","CPF / CNPJ:","E-mail:","Telefone:",null,"PF ou PJ?",null,null,null,"Info Preench",1,2,3,4,5,6,7,8,9,10,11,null,10,9,8,7,6,5,4,3,2,"Total","DV1",null,11,10,9,8,7,6,5,4,3,2,"Total","DV2","Info Calc","Teste",null,0,1,2,3,4,5,6,7,8,9,10,11,12,13,14,null,5,4,3,2,9,8,7,6,5,4,3,2,"Tot1","DV1",null,6,5,4,3,2,9,8,7,6,5,4,3,2,"Tot2","DV2","CNPJvalid","Teste"]
[null,null,null,null,null,null,null,null,null,null,null,null,null,null,null,null,null,null,null,null,null,null,null,null,null,null,null,null,null,null,null,null,null,null,null,null,null,{"$f":"IF(O7=\"\",1,0)","v":1},{"$f":"IF(U7=\"\",1,0)","v":1},{"$f":"IF(AB7=\"\",1,0)","v":1},null,{"$f":"IF(ISERR(IF(CF7=\"OK\",\"PF\",IF(EC7=\"OK\",\"PJ\",\"erro\"))),\"erro\",IF(CF7=\"OK\",\"PF\",IF(EC7=\"OK\",\"PJ\",\"erro\")))","v":"erro"},{"$f":"IF(AR7<>0,\"erro\",0)","v":"erro"},{"$f":"SUM(AK7:AM7)","v":2},null,{"$f":"SUBSTITUTE(SUBSTITUTE(SUBSTITUTE(O7,\"/\",\"\"),\"-\",\"\"),\".\",\"\")","v":""},{"$f":"MID($AT$7,AU$6,1)","v":""},{"$f":"MID($AT$7,AV$6,1)","v":""},"","","","","","","","","",null,{"$f":"AU$7*BG$6","v":{"$error":"#VALUE!"}},{"$f":"AV$7*BH$6","v":{"$error":"#VALUE!"}},{"$f":"AW$7*BI$6","v":{"$error":"#VALUE!"}},{"$error":"#VALUE!"},{"$error":"#VALUE!"},{"$error":"#VALUE!"},{"$error":"#VALUE!"},{"$error":"#VALUE!"},{"$error":"#VALUE!"},{"$f":"SUM(BG7:BO7)","v":{"$error":"#VALUE!"}},{"$f":"IF(11-MOD(BP7,11)>9,0,11-MOD(BP7,11))","v":{"$error":"#VALUE!"}},null,{"$f":"AU$7*BS$6","v":{"$error":"#VALUE!"}},{"$f":"AV$7*BT$6","v":{"$error":"#VALUE!"}},{"$error":"#VALUE!"},{"$error":"#VALUE!"},{"$error":"#VALUE!"},{"$error":"#VALUE!"},{"$error":"#VALUE!"},{"$error":"#VALUE!"},{"$error":"#VALUE!"},{"$f":"BQ$7*CB$6","v":{"$error":"#VALUE!"}},{"$f":"SUM(BS7:CB7)","v":{"$error":"#VALUE!"}},{"$f":"IF(11-MOD(CC7,11)>9,0,11-MOD(CC7,11))","v":{"$error":"#VALUE!"}},{"$f":"CONCATENATE(AU7,AV7,AW7,AX7,AY7,AZ7,BA7,BB7,BC7,BQ7,CD7)","v":{"$error":"#VALUE!"}},{"$f":"IF(AT7=CE7,\"OK\",\"erro\")","v":{"$error":"#VALUE!"}},null,{"$f":"SUBSTITUTE(SUBSTITUTE(SUBSTITUTE(O7,\"/\",\"\"),\"-\",\"\"),\".\",\"\")","v":""},{"$f":"MID($CH$7,CI$6,1)","v":""},{"$f":"MID($CH$7,CJ$6,1)","v":""},"","","","","","","","","","","","",null,{"$f":"CI$7*CX$6","v":{"$error":"#VALUE!"}},{"$f":"CJ$7*CY$6","v":{"$error":"#VALUE!"}},{"$f":"CK$7*CZ$6","v":{"$error":"#VALUE!"}},{"$f":"CL$7*DA$6","v":{"$error":"#VALUE!"}},{"$f":"CM$7*DB$6","v":{"$error":"#VALUE!"}},{"$f":"CN$7*DC$6","v":{"$error":"#VALUE!"}},{"$error":"#VALUE!"},{"$error":"#VALUE!"},{"$error":"#VALUE!"},{"$error":"#VALUE!"},{"$error":"#VALUE!"},{"$error":"#VALUE!"},{"$f":"SUM(CX7:DI7)","v":{"$error":"#VALUE!"}},{"$f":"IF(MOD(DJ7,11)<2,0,11-MOD(DJ7,11))","v":{"$error":"#VALUE!"}},null,{"$f":"CI$7*DM$6","v":{"$error":"#VALUE!"}},{"$f":"CJ$7*DN$6","v":{"$error":"#VALUE!"}},{"$f":"CK$7*DO$6","v":{"$error":"#VALUE!"}},{"$error":"#VALUE!"},{"$error":"#VALUE!"},{"$error":"#VALUE!"},{"$error":"#VALUE!"},{"$error":"#VALUE!"},{"$error":"#VALUE!"},{"$error":"#VALUE!"},{"$error":"#VALUE!"},{"$error":"#VALUE!"},{"$f":"DK$7*DY$6","v":{"$error":"#VALUE!"}},{"$f":"SUM(DM7:DY7)","v":{"$error":"#VALUE!"}},{"$f":"IF(MOD(DZ7,11)<2,0,11-MOD(DZ7,11))","v":{"$error":"#VALUE!"}},{"$f":"CONCATENATE(CI7,CJ7,CK7,CL7,CM7,CN7,CO7,CP7,CQ7,CR7,CS7,CT7,DK7,EA7)","v":{"$error":"#VALUE!"}},{"$f":"IF(CH7=EB7,\"OK\",\"erro\")","v":{"$error":"#VALUE!"}}]
[null,null,{"$f":"IF(C7=\"\",\"Preencha o campo Nome/Razão Social\",\"\")","v":"Preencha o campo Nome/Razão Social"},null,null,null,null,null,null,null,null,null,null,null,{"$f":"IF(OR(ISERR(AP7),AP7=\"erro\"),\"CPF / CNPJ preenchido incorretamente!\",IF(O7=\"\",\"Preencha o campo CPF / CNPJ\",IF(CF7=\"OK\",\"\",IF(EC7=\"OK\",\"\",\"CPF / CNPJ preenchido incorretamente!\"))))","v":"CPF / CNPJ preenchido incorretamente!"},null,null,null,null,null,{"$f":"IF(U7=\"\",\"Preencha o campo E-mail\",\"\")","v":"Preencha o campo E-mail"},null,null,null,null,null,null,{"$f":"IF(AB7=\"\",\"Preencha o campo Telefone\",\"\")","v":"Preencha o campo Telefone"}]
[]
[null,null,"Seção A - Declarações de Investidor Profissional e Qualificado"]
[]
[null,null,null,null,"Declaração da Condição de Investidor Profissional",null,null,null,null,null,null,null,null,null,null,null,null,null,null,null,null,null,null,null,null,null,null,null,null,null,null,null,null,null,null,null,{"$f":"IF(AND(C12=\"\",C22=\"\"),0,IF(AND(C12=\"x\",C22=\"\"),1,IF(AND(C12=\"\",C22=\"x\"),2,\"erro\")))","v":0},"Seção A - Declarações de Investidor Profissional e Qualificado"]
[]
[null,null,null,null,"Ao assinar este termo, afirmo minha condição de investidor profissional e declaro possuir conhecimento sobre o mercado financeiro suficiente para que não me sejam aplicáveis um conjunto de proteções legais e regulamentares conferidas aos demais investidores.\n\nComo investidor profissional, atesto ser capaz de entender e ponderar os riscos financeiros relacionados à aplicação de meus recursos em valores mobiliários que só podem ser adquiridos por investidores profissionais.\n\nDeclaro, sob as penas da lei, que possuo investimentos financeiros em valor superior a R$ 10.000.000,00 (dez milhões de reais). "]
[]
[]
[]
[]
[]
[]
[]
[null,null,null,null,"Declaração da Condição de Investidor Qualificado"]
[]
[null,null,null,null,"Ao assinar este termo, afirmo minha condição de investidor qualificado e declaro possuir conhecimento sobre o mercado financeiro suficiente para que não me sejam aplicáveis um conjunto de proteções legais e regulamentares conferidas aos investidores que não sejam qualificados.\n\nComo investidor qualificado, atesto ser capaz de entender e ponderar os riscos financeiros relacionados à aplicação de meus recursos em valores mobiliários que só podem ser adquiridos por investidores qualificados.\n\nDeclaro, sob as penas da lei, que possuo investimentos financeiros em valor superior a R$ 1.000.000,00 (um milhão de reais). "]
[]
[]
[]
[]
[]
[]
[null,null,null,null,{"$f":"IF(AND(C12=\"x\",C22=\"x\"),\"Preencha apenas uma das declarações!\",\"\")","v":""}]
[null,null,"Seção B - Questionário de Suitability"]
[]
[null,null,"1) Qual é sua formação acadêmica?",null,null,null,null,null,null,null,null,null,null,null,null,null,null,null,null,null,null,null,null,null,null,null,null,null,null,null,null,null,null,null,null,null,"Questão 1",{"$f":"IF(AND(C36=\"x\",C38=\"\",J36=\"\",J38=\"\"),1,IF(AND(C36=\"\",C38=\"x\",J36=\"\",J38=\"\"),2,IF(AND(C36=\"\",C38=\"\",J36=\"x\",J38=\"\"),3,IF(AND(C36=\"\",C38=\"\",J36=\"\",J38=\"x\"),0,\"erro\"))))","v":"erro"},{"$f":"IF(AL34=\"erro\",1,0)","v":1}]
[]
[null,null,null,null,"a) Ensino fundamental completo.",null,null,null,null,null,null,"c) Pós-graduação."]
[]
[null,null,null,null,"b) Ensino superior completo.",null,null,null,null,null,null,"d) Não aplicável (cliente pessoa jurídica ou escolaridade inferior a ensino fundamental)."]
[null,null,{"$f":"IF(AK138=\"Sem Perfil\",\"\",IF(AP7=\"PJ\",IF(AND(C36=\"\",C38=\"\",J36=\"\",J38=\"x\"),\"\",\"Alternativa não aplicável para Pessoa Jurídica!\"),IF(AL34=\"erro\",\"Selecione somente  uma alternativa!\",\"\")))","v":"Selecione somente  uma alternativa!"}]
[null,null,"2) Em qual prazo você estima resgatar seus investimentos? ",null,null,null,null,null,null,null,null,null,null,null,null,null,null,null,null,null,null,null,null,null,null,null,null,null,null,null,null,null,null,null,null,null,"Questão 2",{"$f":"IF(AND(C42=\"x\",C44=\"\",C46=\"\"),1,IF(AND(C42=\"\",C44=\"x\",C46=\"\"),2,IF(AND(C42=\"\",C44=\"\",C46=\"x\"),3,\"erro\")))","v":"erro"},{"$f":"IF(AL40=\"erro\",1,0)","v":1}]
[]
[null,null,null,null,"a) Curto prazo, até três meses, pois os recursos serão utilizados em breve."]
[]
[null,null,null,null,"b) Médio prazo, entre três e seis meses, pois os recursos serão utilizados como rendimento complementar."]
[]
[null,null,null,null,"c) Longo prazo, acima de seis meses, pois os recursos serão utilizados com o objetivo de aumentar o patrimônio."]
[null,null,{"$f":"IF(AK138=\"Sem Perfil\",\"\",IF(AL40=\"erro\",\"Selecione somente uma alternativa!\",\"\"))","v":"Selecione somente uma alternativa!"}]
[null,null,"3) Qual é a sua experiência com produtos de investimento tradicionais (CDB, LCI, LCA) e fundos de investimento (fundos de renda fixa, de ações, multimercado)?",null,null,null,null,null,null,null,null,null,null,null,null,null,null,null,null,null,null,null,null,null,null,null,null,null,null,null,null,null,null,null,null,null,"Questão 3",{"$f":"IF(AND(C50=\"x\",C52=\"\",C54=\"\"),1,IF(AND(C50=\"\",C52=\"x\",C54=\"\"),2,IF(AND(C50=\"\",C52=\"\",C54=\"x\"),3,\"erro\")))","v":"erro"},{"$f":"IF(AL48=\"erro\",1,0)","v":1}]
[]
[null,null,null,null,"a) Nenhuma ou pouca experiência, pois nunca negociei esses produtos ou negociei raríssimas vezes. "]
[]
[null,null,null,null,"b) Média experiência; tenho algum conhecimento, mas não negocio com frequência."]
[]
[null,null,null,null,"c) Alta experiência; tenho pleno conhecimento sobre os produtos e negocio com frequência."]
[null,null,{"$f":"IF(AK138=\"Sem Perfil\",\"\",IF(AL48=\"erro\",\"Selecione somente uma alternativa!\",\"\"))","v":"Selecione somente uma alternativa!"}]
[null,null,"4) Com quais investimentos você tem familiaridade? Leve em consideração, além da sua experiência com os produtos de investimento, sua formação acadêmica e experiência profissional.",null,null,null,null,null,null,null,null,null,null,null,null,null,null,null,null,null,null,null,null,null,null,null,null,null,null,null,null,null,null,null,null,null,"Questão 4",{"$f":"IF(AND(P62=\"x\",OR(C58=\"x\",C60=\"x\",C62=\"x\",J58=\"x\",J60=\"x\",J62=\"x\",P58=\"x\",P60=\"x\")),\"erro\",IF(AND(C58<>\"x\",C60<>\"x\",C62<>\"x\",J58<>\"x\",J60<>\"x\",J62<>\"x\",P58<>\"x\",P60<>\"x\",P62<>\"x\"),\"erro\",SUM(AK58,AK60,AK62,AM58,AM60,AM62,AO58,AO60,AO62)))","v":"erro"},{"$f":"IF(AL56=\"erro\",1,0)","v":1}]
[]
[null,null,null,null,"a) Poupança",null,null,null,null,null,null,"d) Renda Variável (Ex.: Ações)",null,null,null,null,null,"g) Fundos de Ação",null,null,null,null,null,null,null,null,null,null,null,null,null,null,null,null,null,"a",{"$f":"0*IF(C58=\"x\",1,IF(C58=\"\",0,\"erro\"))","v":0},"d",{"$f":"2*IF(J58=\"x\",1,IF(J58=\"\",0,\"erro\"))","v":0},"g",{"$f":"2*IF(P58=\"x\",1,IF(P58=\"\",0,\"erro\"))","v":0}]
[]
[null,null,null,null,"b) Títulos Públicos",null,null,null,null,null,null,"e) Derivativos",null,null,null,null,null,"h) Clubes de Investimentos",null,null,null,null,null,null,null,null,null,null,null,null,null,null,null,null,null,"b",{"$f":"0*IF(C60=\"x\",1,IF(C60=\"\",0,\"erro\"))","v":0},"e",{"$f":"3*IF(J60=\"x\",1,IF(J60=\"\",0,\"erro\"))","v":0},"h",{"$f":"2*IF(P60=\"x\",1,IF(P60=\"\",0,\"erro\"))","v":0}]
[]
[null,null,null,null,"c) Renda Fixa (Ex.: CDB, LCI, LCA)",null,null,null,null,null,null,"f) Fundos Multimercados",null,null,null,null,null,"i) Não possuo experiência em investimentos",null,null,null,null,null,null,null,null,null,null,null,null,null,null,null,null,null,"c",{"$f":"1*IF(C62=\"x\",1,IF(C62=\"\",0,\"erro\"))","v":0},"f",{"$f":"2*IF(J62=\"x\",1,IF(J62=\"\",0,\"erro\"))","v":0},"i",{"$f":"0*IF(P62=\"x\",1,IF(P62=\"\",0,\"erro\"))","v":0}]
[null,null,{"$f":"IF(AK138=\"Sem Perfil\",\"\",IF(AND(P62=\"x\",OR(C58=\"x\",C60=\"x\",C62=\"x\",J58=\"x\",J60=\"x\",J62=\"x\",P58=\"x\",P60=\"x\")),\"A opção 'i' não pode ser acompanhada de outras opções de investimento!\",IF(AL56=\"erro\",\"Selecione uma ou mais alternativas!\",\"\")))","v":"Selecione uma ou mais alternativas!"}]
[null,null,"5) Qual é sua tolerância em relação ao risco de perda?",null,null,null,null,null,null,null,null,null,null,null,null,null,null,null,null,null,null,null,null,null,null,null,null,null,null,null,null,null,null,null,null,null,"Questão 5",{"$f":"IF(AND(C66=\"x\",C68=\"\",C70=\"\"),1,IF(AND(C66=\"\",C68=\"x\",C70=\"\"),2,IF(AND(C66=\"\",C68=\"\",C70=\"x\"),3,\"erro\")))","v":"erro"},{"$f":"IF(AL64=\"erro\",1,0)","v":1}]
[]
[null,null,null,null,"a) Não quero perder capital, mesmo que isso signifique que minha rentabilidade seja pequena."]
[]
[null,null,null,null,"b) Posso aceitar perdas ocasionais em busca de retornos maiores, desde que signifiquem pequenas parcelas do total investido."]
[]
[null,null,null,null,"c) Posso aceitar perdas ocasionais, em busca de retornos muito elevados."]
[null,null,{"$f":"IF(AK138=\"Sem Perfil\",\"\",IF(AL64=\"erro\",\"Selecione somente uma alternativa!\",\"\"))","v":"Selecione somente uma alternativa!"}]
[null,null,"6) Qual é o objetivo dos seus investimentos em relação ao seu patrimônio?",null,null,null,null,null,null,null,null,null,null,null,null,null,null,null,null,null,null,null,null,null,null,null,null,null,null,null,null,null,null,null,null,null,"Questão 6",{"$f":"IF(AND(C74=\"x\",C76=\"\",C78=\"\"),1,IF(AND(C74=\"\",C76=\"x\",C78=\"\"),2,IF(AND(C74=\"\",C76=\"\",C78=\"x\"),3,\"erro\")))","v":"erro"},{"$f":"IF(AL72=\"erro\",1,0)","v":1}]
[]
[null,null,null,null,"a) Proteção do patrimônio e priorização da segurança em investimentos; sem riscos."]
[]
[null,null,null,null,"b) Proteção contra riscos financeiros e consideração da segurança em investimentos, com pequenos riscos para obter mais rentabilidade."]
[]
[null,null,null,null,"c) Proteção contra riscos financeiros e consideração de um risco maior e oscilações no curto prazo em busca de maiores ganhos. "]
[null,null,{"$f":"IF(AK138=\"Sem Perfil\",\"\",IF(AL72=\"erro\",\"Selecione somente uma alternativa!\",\"\"))","v":"Selecione somente uma alternativa!"}]
[null,null,"7) Em uma situação de crise, supondo que você guardou o equivalente a 12 meses de sua Renda / Faturamento, qual seria sua reação ao verificar uma perda do equivalente a 1 mês de sua Renda / Faturamento? "]
[null,null,null,null,null,null,null,null,null,null,null,null,null,null,null,null,null,null,null,null,null,null,null,null,null,null,null,null,null,null,null,null,null,null,null,null,"Questão 7",{"$f":"IF(AND(C83=\"x\",C85=\"\",C87=\"\"),1,IF(AND(C83=\"\",C85=\"x\",C87=\"\"),2,IF(AND(C83=\"\",C85=\"\",C87=\"x\"),3,\"erro\")))","v":"erro"},{"$f":"IF(AL81=\"erro\",1,0)","v":1}]
[]
[null,null,null,null,"a) Resgataria a totalidade dos recursos."]
[]
[null,null,null,null,"b) Manteria os recursos por mais um tempo e se a perda aumentasse, resgataria a totalidade."]
[]
[null,null,null,null,"c) Buscaria mais informações para tomar uma decisão."]
[null,null,{"$f":"IF(AK138=\"Sem Perfil\",\"\",IF(AL81=\"erro\",\"Selecione somente uma alternativa!\",\"\"))","v":"Selecione somente uma alternativa!"}]
[null,null,"8) Em cumprimento à legislação aplicável, favor manter atualizadas as informações sobre a Renda / Faturamento e o patrimônio: ",null,null,null,null,null,null,null,null,null,null,null,null,null,null,null,null,null,null,null,null,null,null,null,null,null,null,null,null,null,null,null,null,null,"Questão 8",{"$f":"IF(OR(AND(C92=\"x\",AP7=\"PJ\"),AND(P92=\"x\",AP7=\"PF\")),\"erro\",IF(AND(AK92=1,AO92=0),AK96+AM96,IF(AND(AK92=0,AO92=1),AO96+AQ96,\"erro\")))","v":"erro"},{"$f":"IF(AL89=\"erro\",1,0)","v":1}]
[]
[]
[null,null,null,null,"Pessoa Física",null,{"$f":"IF($C$92=\"\",\"\",IF(AND($C$92=\"x\",$AP$7=\"PF\"),\"\",\"Selecione o campo Pessoa Jurídica ou revise o campo CPF / CNPJ!\"))","v":""},null,null,null,null,null,null,null,null,null,null,"Pessoa Jurídica",null,{"$f":"IF($P$92=\"\",\"\",IF(AND($P$92=\"x\",$AP$7=\"PJ\"),\"\",\"Selecione o campo Pessoa Física ou revise o campo CPF / CNPJ!\"))","v":""},null,null,null,null,null,null,null,null,null,null,null,null,null,null,null,null,{"$f":"IF(AND(C92=\"x\",P92=\"\"),1,IF(AND(C92=\"\",P92=\"x\"),0,\"erro\"))","v":"erro"},null,null,null,{"$f":"IF(AND(C92=\"\",P92=\"x\"),1,IF(AND(C92=\"x\",P92=\"\"),0,\"erro\"))","v":"erro"}]
[]
[null,null,"Renda Anual (Faturamento Anual): R$",null,null,null,null,null,null,"Valor do Patrimônio: R$",null,null,null,null,null,"Faturamento Anual: R$",null,null,null,null,null,null,"Valor do Patrimônio: R$"]
[]
[null,null,null,null,"a) Até 10 MM",null,null,null,null,null,null,"e) Até 50 MM",null,null,null,null,null,"a) Até 100 MM",null,null,null,null,null,null,"e) Até 50 MM",null,null,null,null,null,null,null,null,null,null,null,{"$f":"IF(AND(C96=\"x\",C98=\"\",C100=\"\",C102=\"\"),1,IF(AND(C96=\"\",C98=\"x\",C100=\"\",C102=\"\"),2,IF(AND(C96=\"\",C98=\"\",C100=\"x\",C102=\"\"),3,IF(AND(C96=\"\",C98=\"\",C100=\"\",C102=\"x\"),4,\"erro\"))))","v":"erro"},null,{"$f":"IF(AND(J96=\"x\",J98=\"\",J100=\"\",J102=\"\"),1,IF(AND(J96=\"\",J98=\"x\",J100=\"\",J102=\"\"),2,IF(AND(J96=\"\",J98=\"\",J100=\"x\",J102=\"\"),3,IF(AND(J96=\"\",J98=\"\",J100=\"\",J102=\"x\"),4,\"erro\"))))","v":"erro"},null,{"$f":"IF(AND(P96=\"x\",P98=\"\",P100=\"\",P102=\"\"),1,IF(AND(P96=\"\",P98=\"x\",P100=\"\",P102=\"\"),2,IF(AND(P96=\"\",P98=\"\",P100=\"x\",P102=\"\"),3,IF(AND(P96=\"\",P98=\"\",P100=\"\",P102=\"x\"),4,\"erro\"))))","v":"erro"},null,{"$f":"IF(AND(W96=\"x\",W98=\"\",W100=\"\",W102=\"\"),1,IF(AND(W96=\"\",W98=\"x\",W100=\"\",W102=\"\"),2,IF(AND(W96=\"\",W98=\"\",W100=\"x\",W102=\"\"),3,IF(AND(W96=\"\",W98=\"\",W100=\"\",W102=\"x\"),4,\"erro\"))))","v":"erro"}]
[]
[null,null,null,null,"b) De 10 MM à 25 MM",null,null,null,null,null,null,"f) De 50 MM à 100 MM",null,null,null,null,null,"b) De 100 MM à 300 MM",null,null,null,null,null,null,"f) De 50 MM à 100 MM"]
[]
[null,null,null,null,"c) De 25 MM à 50 MM",null,null,null,null,null,null,"g) De 100 MM à 200 MM",null,null,null,null,null,"c) De 300 MM à 500 MM",null,null,null,null,null,null,"g) De 100 MM à 200 MM"]
[]
[null,null,null,null,"d) Acima de 50 MM",null,null,null,null,null,null,"h) Acima de 200 MM",null,null,null,null,null,"d) Acima de 500 MM",null,null,null,null,null,null,"h) Acima de 200 MM"]
[]
[null,null,{"$f":"IF(AK138=\"Sem Perfil\",\"\",IF(AK92=\"erro\",\"Selecione uma das opções (PF ou PJ)!\",IF(C92=\"x\",IF(AND(C96=\"\",C98=\"\",C100=\"\",C102=\"\",J96=\"\",J98=\"\",J100=\"\",J102=\"\"),\"Preencha uma opção para Renda e uma opção para Patrimônio para Pessoa Física!\",IF(AK96=\"erro\",\"Selecione apenas uma alternativa para Renda!\",IF(AM96=\"erro\",\"Selecione apenas uma alternativa para Patrimônio!\",IF(OR(AO96<>\"erro\",AQ96<>\"erro\"),\"Selecione apenas os campos relacionados a Pessoa Física!\",\"\")))),IF(P92=\"x\",IF(AND(P96=\"\",P98=\"\",P100=\"\",P102=\"\",W96=\"\",W98=\"\",W100=\"\",W102=\"\"),\"Preencha uma opção para Faturamento e uma opção para Patrimônio para Pessoa Jurídica!\",IF(AO96=\"erro\",\"Selecione apenas uma alternativa para Faturamento!\",IF(AQ96=\"erro\",\"Selecione apenas uma alternativa para Patrimônio!\",IF(OR(AK96<>\"erro\",AM96<>\"erro\"),\"Selecione apenas os campos relacionados a Pessoa Jurídica!\",\"\"))))))))","v":"Selecione uma das opções (PF ou PJ)!"}]
[null,null,"9) Quanto, em termos percentuais, seus investimentos representam do seu patrimônio? ",null,null,null,null,null,null,null,null,null,null,null,null,null,null,null,null,null,null,null,null,null,null,null,null,null,null,null,null,null,null,null,null,null,"Questão 9",{"$f":"IF(AND(C107=\"x\",C109=\"\",J107=\"\",J109=\"\"),1,IF(AND(C107=\"\",C109=\"x\",J107=\"\",J109=\"\"),2,IF(AND(C107=\"\",C109=\"\",J107=\"x\",J109=\"\"),3,IF(AND(C107=\"\",C109=\"\",J107=\"\",J109=\"x\"),4,\"erro\"))))","v":"erro"},{"$f":"IF(AL105=\"erro\",1,0)","v":1}]
[]
[null,null,null,null,"a) Até 25%. ",null,null,null,null,null,null,"c) Entre 51% e 75%"]
[]
[null,null,null,null,"b) Entre 26% e 50%.",null,null,null,null,null,null,"d) Mais do que 76%",null,null,null,null,null,null,null,null,null,null,null,null,null,null,null,null,null,null,null,null,null,null,null,null,"Resultado Questionário",{"$f":"IF(OR(AL34=\"erro\",AL40=\"erro\",AL48=\"erro\",AL56=\"erro\",AL64=\"erro\",AL72=\"erro\",AL81=\"erro\",AL89=\"erro\",AL105=\"erro\"),\"erro\",SUM(AL34,AL40,AL48,AL56,AL64,AL72,AL81,AL89,AL105))","v":"erro"},null,"Perfil Questionário",{"$f":"IF(AL109=\"erro\",\"erro\",IF(AL109<=10,\"Conservador\",IF(AL109<=20,\"Moderado\",IF(AL109>=21,\"Agressivo\",\"erro\"))))","v":"erro"}]
[null,null,{"$f":"IF(AK138=\"Sem Perfil\",\"\",IF(AL105=\"erro\",\"Selecione somente uma alternativa!\",\"\"))","v":"Selecione somente uma alternativa!"}]
[null,null,"Seção C - Declarações do cliente, Perfil e Assinatura"]
[]
[null,null,null,null,"Declaro que as informações prestadas são verdadeiras; responsabilizo-me pela sua exatidão e comprometo-me a informar o Banco a respeito de quaisquer alterações nas informações prestadas.",null,null,null,null,null,null,null,null,null,null,null,null,null,null,null,null,null,null,null,null,null,null,null,null,null,null,null,null,null,null,null,{"$f":"IF(C113=\"x\",0,\"erro\")","v":"erro"},null,{"$f":"IF(AK113=\"erro\",1,0)","v":1}]
[]
[null,null,null,null,{"$f":"IF(AK138=\"Sem Perfil\",\"\",IF(C113=\"x\",\"\",\"Preencha a declaração acima com um 'x' para prosseguir!\"))","v":"Preencha a declaração acima com um 'x' para prosseguir!"}]
[]
[null,null,null,null,"Termo de Ciência de Risco de Ausência de perfil",null,null,null,null,null,null,null,null,null,null,null,null,null,null,null,null,null,null,null,null,null,null,null,null,{"$f":"IF(C117=\"\",\"\",IF(C117=\"x\",IF(AND(AL34=\"erro\",AL40=\"erro\",AL48=\"erro\",AL56=\"erro\",AL64=\"erro\",AL72=\"erro\",AL81=\"erro\",AL89=\"erro\",AL105=\"erro\"),\"\",\"Em caso de assinatura do Termo de Ciência de Risco não responda as questões de 1 a 9!\")))","v":""},null,null,null,null,null,null,{"$f":"IF(C117=\"x\",1,0)","v":0}]
[]
[null,null,"Declaro para todos os fins e efeitos de direito, sem limitação, para fins da legislação aplicável, que: (i) NÃO ACEITO RESPONDER O QUESTIONÁRIO DE SUITABILITY; (ii) que essa decisão foi tomada por livre e espontânea vontade; (iii) que estou ciente dos riscos inerentes aos produtos e serviços de alta complexidade oferecidos pelo Banco Fibra S.A.; (iv) que assumo inteira responsabilidade sobre essa decisão; (v)que tive prévio acesso a todas as informações que julgava necessárias à minha decisão independente de contratação de produtos, serviços e operações; (vi) e por fim, que estou ciente sobre a possibilidade de meus investimentos não estarem em conformidade com o meu perfil de investimento. Isento o Banco Fibra S.A. de qualquer questionamento por qualquer parte, incluindo órgãos reguladores e autorreguladores, com relação à contratação dos produtos, serviços ou operações, bem como por eventuais perdas decorrentes dos investimentos realizados."]
[]
[]
[]
[]
[]
[]
[]
[null,null,"Categoria de Produto de Investimento que desejo operar*: "]
[]
[null,null,null,null,"Renda Fixa Títulos Públicos",null,null,null,null,null,null,"Fundo de Invest. Ações",null,null,null,null,null,"Fundo de Investimento Multimercado",null,null,null,null,null,null,null,null,null,null,null,null,null,null,null,null,null,null,{"$f":"IF(C129=\"x\",1,0)","v":0},null,{"$f":"IF(J129=\"x\",1,0)","v":0},null,{"$f":"IF(P129=\"x\",1,0)","v":0},null,{"$f":"SUM(AK129,AK131,AK133,AM129,AM131,AM133,AO129,AO131,AO133)","v":0}]
[]
[null,null,null,null,"Renda Fixa com risco de crédito privado",null,null,null,null,null,null,"Fundo de Invest. Renda Fixa",null,null,null,null,null,"Fundo de Investimento Imobiliário",null,null,null,null,null,null,null,null,null,null,null,null,null,null,null,null,null,null,{"$f":"IF(C131=\"x\",1,0)","v":0},null,{"$f":"IF(J131=\"x\",1,0)","v":0},null,{"$f":"IF(P131=\"x\",1,0)","v":0}]
[]
[null,null,null,null,"Ações",null,null,null,null,null,null,"Cambial",null,null,null,null,null,"Fundo de Investimento em Participações",null,null,null,null,null,null,null,null,null,null,null,null,null,null,null,null,null,null,{"$f":"IF(C133=\"x\",1,0)","v":0},null,{"$f":"IF(J133=\"x\",1,0)","v":0},null,{"$f":"IF(P133=\"x\",1,0)","v":0}]
[]
[null,null,"*Pode ser preenchido mais de uma opção",null,null,null,null,null,null,{"$f":"IF(C117=\"x\",IF(AND(C129=\"\",C131=\"\",C133=\"\",J129=\"\",J131=\"\",J133=\"\",P129=\"\",P131=\"\",P133=\"\"),\"Selecione a(s) categoria(s) de Produto que deseja operar!\",\"\"),IF(AND(C129=\"\",C131=\"\",C133=\"\",J129=\"\",J131=\"\",J133=\"\",P129=\"\",P131=\"\",P133=\"\"),\"\",\"A seleção da(s) categoria(s) de Produto só é necessária em caso de assinatura de Termo de Ciência de Risco!\"))","v":""}]
[]
[null,null,null,null,"Perfil: ",{"$f":"IF(AK138=\"erro\",\"Preenchimento Incorreto!\",AK138)","v":"Preenchimento Incorreto!"},null,null,null,null,null,"Local e Data: ",null,null,null,null,null,null,null,null,"Assinatura: "]
[null,null,null,null,null,null,null,null,null,null,null,null,null,null,null,null,null,null,null,null,null,null,null,null,null,null,null,null,null,null,null,null,null,null,null,null,{"$f":"IF(AND(C117=\"x\",AQ129>0),\"Sem Perfil\",IF(AND(AO109<>\"erro\",C117=\"x\"),\"erro\",IF(OR(AQ7=\"erro\",AK12=\"erro\",AO109=\"erro\",AK113=\"erro\"),\"erro\",IF(AP7=\"PJ\",IF(AK12=0,AO109,IF(AK12=1,\"Profissional\",IF(AK12=2,\"Qualificado\",\"erro\"))),AO109))))","v":"erro"}]

{"sheet":"Notas","index":5,"n_rows":12,"n_cols":2,"rows_kept":12,"cut":false,"hidden":true,"merged":[]}
[]
["Questão","Resposta"]
[1,{"$f":"_xlfn.IFS('Mod Quest Investimentos'!C36=\"X\",1,'Mod Quest Investimentos'!C38=\"X\",2,'Mod Quest Investimentos'!J36=\"X\",3,'Mod Quest Investimentos'!J38=\"X\",0)","v":{"$error":"#N/A"}}]
[2,{"$f":"_xlfn.IFS('Mod Quest Investimentos'!C42=\"X\",1,'Mod Quest Investimentos'!C44=\"X\",2,'Mod Quest Investimentos'!C46=\"X\",3)","v":{"$error":"#N/A"}}]
[3,{"$f":"_xlfn.IFS('Mod Quest Investimentos'!C50=\"X\",1,'Mod Quest Investimentos'!C52=\"X\",2,'Mod Quest Investimentos'!C54=\"X\",3)","v":{"$error":"#N/A"}}]
[4,{"$f":"_xlfn.IFS('Mod Quest Investimentos'!C58=\"X\",0,'Mod Quest Investimentos'!C60=\"X\",0,'Mod Quest Investimentos'!C62=\"X\",1,'Mod Quest Investimentos'!J58=\"X\",2,'Mod Quest Investimentos'!J60=\"X\",3,'Mod Quest Investimentos'!J62=\"X\",2,'Mod Quest Investimentos'!P58=\"X\",2,'Mod Quest Investimentos'!P60=\"X\",2,'Mod Quest Investimentos'!P62=\"X\",0)","v":{"$error":"#N/A"}}]
[5,{"$f":"_xlfn.IFS('Mod Quest Investimentos'!C66=\"X\",1,'Mod Quest Investimentos'!C68=\"X\",2,'Mod Quest Investimentos'!C70=\"X\",3)","v":{"$error":"#N/A"}}]
[6,{"$f":"_xlfn.IFS('Mod Quest Investimentos'!C74=\"X\",1,'Mod Quest Investimentos'!C76=\"X\",2,'Mod Quest Investimentos'!C78=\"X\",3)","v":{"$error":"#N/A"}}]
[7,{"$f":"_xlfn.IFS('Mod Quest Investimentos'!C83=\"X\",1,'Mod Quest Investimentos'!C85=\"X\",2,'Mod Quest Investimentos'!C87=\"X\",3)","v":{"$error":"#N/A"}}]
["8 PF",{"$f":"_xlfn.IFS('Mod Quest Investimentos'!C96=\"X\",1,'Mod Quest Investimentos'!C98=\"X\",2,'Mod Quest Investimentos'!C100=\"X\",3,'Mod Quest Investimentos'!C102=\"x\",4)","v":{"$error":"#N/A"}}]
["8 PJ",{"$f":"_xlfn.IFS('Mod Quest Investimentos'!P96=\"x\",1,'Mod Quest Investimentos'!P98=\"x\",2,'Mod Quest Investimentos'!P100=\"x'\",3,'Mod Quest Investimentos'!P102=\"x\",4)","v":{"$error":"#N/A"}}]
[9,{"$f":"_xlfn.IFS('Mod Quest Investimentos'!C107=\"x\",1,'Mod Quest Investimentos'!C109=\"x\",2,'Mod Quest Investimentos'!J107=\"x'\",3,'Mod Quest Investimentos'!J109=\"x\",4)","v":{"$error":"#N/A"}}]

{"sheet":"Tabela Notas","index":6,"n_rows":13,"n_cols":10,"rows_kept":13,"cut":false,"hidden":true,"merged":[[2,0,3,0],[2,1,2,9]]}
[]
[]
["Questão","Alternativa"]
[null,"a","b","c","d","e","f","g","h","i"]
[1,1,2,3,0,"-","-","-","-","-"]
[2,1,2,3,"-","-","-","-","-","-"]
[3,1,2,3,"-","-","-","-","-","-"]
[4,0,0,1,2,3,2,2,2,0]
[5,1,2,3,"-","-","-","-","-","-"]
[6,1,2,3,"-","-","-","-","-","-"]
[7,1,2,3,"-","-","-","-","-","-"]
[8,1,2,3,4,1,2,3,4,"-"]
[9,1,2,3,4,"-","-","-","-","-"]

{"sheet":"Categoria de Produtos","index":7,"n_rows":14,"n_cols":12,"rows_kept":14,"cut":false,"hidden":true,"merged":[]}
[]
[]
[null,null,"Categoria de Produto de Investimento que desejo operar*: "]
[]
[null,null,null,null,"Renda Fixa títulos públicos",null,null,null,null,null,null,"Fundo de Investimento em Renda Fixa"]
[]
[null,null,null,null,"Renda Fixa com risco de crédito privado",null,null,null,null,null,null,"Fundo de Investimento Imobiliário"]
[]
[null,null,null,null,"Cambial",null,null,null,null,null,null,"Fundo de Investimento em Participações"]
[]
[null,null,null,null,"Fundo de Investimento Multimercado",null,null,null,null,null,null,"Ações"]
[]
[null,null,null,null,"Fundo de Investimento em Ações",null,null,null,null,null,null,"Derivativos"]
[null,null,"* Pode ser preenchido mais de uma opção."]